Cogmind - Beta 15 @@@ ROGUE MODE // 2025.05.28 @ 15:57:56 Player: 7604 Result: Destroyed by G-47 Trooper with Particle Gun Performance ------------- Evolutions (0) 0 Regions Visited (2) 400 Robots Destroyed (43) 215 Value Destroyed (736) 736 Prototype IDs (2) 40 Alien Tech Used (0) 0 Bonus (0) 0 TOTAL SCORE: 1391 Bonus ------- None Cogmind --------- Core Integrity 0/250 Matter 267/300 Energy 90/125 System Corruption 4% Temperature Warm (124) Movement Treading (480) Ox4 Location -10/Mines Parts ------- > --- POWER (1) -------- Light Ion Engine > --- PROPULSION (2) --- Light Treads Wheel > --- UTILITY (2) ------ Huge Storage Unit Seismic Detector > --- WEAPON (2) ------- EM Pulse Gun Small Laser > --- INVENTORY (25) --- Experimental Sensor Array Seismic Detector Seismic Detector Seismic Detector Light Assault Rifle Grenade Launcher Datajack Mining Laser Peak State ------------ > --- POWER ------------ Light Ion Engine > --- PROPULSION ------- Light Treads Light Treads > --- UTILITY ---------- Large Storage Unit Seismic Detector > --- WEAPON ----------- Light Assault Rifle Light Cannon > --- INVENTORY -------- Experimental Sensor Array Seismic Detector Seismic Detector Seismic Detector Grenade Launcher Datajack Mining Laser [Rating: 8] Favorites ----------- Power Light Ion Engine Engine Light Ion Engine Propulsion Light Treads Treads Light Treads Wheel Wheel Utility Seismic Detector Device Seismic Detector Storage Large Storage Unit Weapon Small Laser Energy Gun Small Laser Ballistic Gun Light Assault Rifle Ballistic Cannon Light Cannon Special Weapon Mining Laser Special Melee Weapon Datajack Build | -11 -10 -10 ------- Run | Yrd Mat Min Slots Evolved . | . . . Power . | . . . Propulsion . | . . . Utility . | . . . Weapon . | . . . Parts Attached 19 | 7 7 5 Power 2 | 1 1 . Engine 2 | 1 1 . Core . | . . . Reactor . | . . . Propulsion 4 | 2 1 1 Treads 3 | 2 1 . Leg . | . . . Wheel 1 | . . 1 Hover . | . . . Flight . | . . . Utility 6 | 2 3 1 Device 2 | 1 1 . Storage 4 | 1 2 1 Processor . | . . . Hackware . | . . . Protection . | . . . Artifact . | . . . Weapon 7 | 2 2 3 Energy Gun 3 | 1 . 2 Energy Cannon . | . . . Ballistic Gun 1 | 1 . . Ballistic Cannon 1 | . 1 . Launcher . | . . . Special Weapon 1 | . 1 . Impact Weapon . | . . . Slashing Weapon . | . . . Piercing Weapon . | . . . Special Melee Weapon 1 | . . 1 Unidentified Prototypes . | . . . Parts Lost 6 | . 3 3 Power 1 | . 1 . Propulsion 2 | . 1 1 Utility . | . . . Weapon 3 | . 1 2 Highest Loss Streak 3 | . 3 1 To Critical Strikes . | . . . Average Backups 5 | 1 5 6 Power . | . . . Propulsion . | . . . Utility 2 | . 2 3 Weapon 1 | . 1 2 Tool/Special . | . . . Unused Backups 5 | . . 5 Power . | . . . Propulsion . | . . . Utility 3 | . . 3 Weapon 2 | . . 2 Tool/Special . | . . . Average Slot Usage (%) 98 | . 99 96 Engine 14 | . 14 14 Treads 24 | . 27 20 Wheel 2 | . . 4 Device 14 | . 14 14 Storage 14 | . 14 14 Energy Gun 10 | . 12 7 Ballistic Gun 10 | . 14 5 Ballistic Cannon 7 | . . 14 Peak Build Rating 8 | 7 7 8 Average Rating 7 | 6 6 7 On Entrance 4 | . 7 7 Naked Turns . | . . . Heaviest Build 88 | 11 28 88 Greatest Support 40 | 40 40 40 Greatest Overweight (x) 8 | . . 8 Average Overweight (x) 1 | . . 2 Largest Inventory Capacity 25 | 8 15 25 Average Capacity 14 | 7 11 20 Most Carried 9 | 4 8 9 Average Carried 5 | 1 5 6 Final Capacity 25 | 8 15 25 Final Carried 8 | 4 5 8 Class Distribution -------------------- 100% | Mutant Dominant Class ---------------- Mutant | -10/Materials Mutant | -10/Mines Resources | -11 -10 -10 ----------- Run | Yrd Mat Min Matter Collected 655 | 296 186 173 Remotely . | . . . Salvage Created 1100 | 187 695 218 Parts 84 | 24 49 11 Haulers Intercepted 1 | . 1 . Recyclers Shooed 2 | . 1 1 Parts Field Recycled . | . . . Retrieved Matter . | . . . Parts Self-Destructed . | . . . Prevented . | . . . Kills | -11 -10 -10 ------- Run | Yrd Mat Min Combat Hostiles Destroyed 26 | . 22 4 Guns 21 | . 21 . Cannons 5 | . 1 4 Classes Destroyed 7 | 2 5 . Worker 3 | 2 . 1 Tunneler 10 | 9 . 1 Hauler 1 | . 1 . Recycler 2 | . 1 1 Watcher 1 | . 1 . Swarmer 11 | . 11 . Grunt 15 | . 11 4 Best Kill Streak 6 | 3 6 2 Combat Bots Only 6 | . 6 1 Max Kills in Single Turn 2 | 1 2 1 Gunslinging 1 | . 1 . Exploded . | . . . Melee . | . . . Uniques/NPCs Destroyed . | . . . Combat | -11 -10 -10 -------- Run | Yrd Mat Min Hostile Shots Fired 119 | . 80 39 Missed 31 | . 20 11 Hits 88 | . 60 28 Projectile 88 | . 60 28 Critical Strikes 1 | . 1 . Damage Taken 1010 | . 602 408 Core 256 | . 131 125 Absorbed by Shields . | . . . Core Remaining (%) 100 | 100 . . Volleys Fired 145 | 26 78 41 Largest 2 | 2 2 2 Hottest 100 | 60 100 80 Shots Fired 274 | 52 155 67 Gun 234 | 52 143 39 Cannon 38 | . 10 28 Launcher . | . . . Special 2 | . 2 . Kinetic 142 | 26 86 30 Thermal 131 | 26 69 36 Explosive . | . . . Electromagnetic 1 | . . 1 Robot Hit Streak 13 | 13 12 5 Robot Miss Streak 3 | 3 3 3 Penetration Max . | . . . Secondary Targets 4 | . 4 . Max Gunslinging Chain 1 | . 1 . Shots Hit Robots 177 | 36 101 40 Core Hits 68 | 12 43 13 Critical Kills 1 | 1 . . Critical Parts Destroyed . | . . . Critical Strikes 2 | 1 . 1 Destroy 1 | 1 . . Blast 1 | . . 1 Melee Attacks 1 | . . 1 Impact . | . . . Slashing . | . . . Piercing . | . . . Sneak Attacks 1 | . . 1 Combat Hostiles . | . . . Follow-up Attacks . | . . . Damage Inflicted 1934 | 365 1053 516 Guns 1463 | 365 889 209 Cannons 459 | . 159 300 Explosions . | . . . Melee . | . . . Ramming 12 | . 5 7 Kinetic 936 | 123 513 300 Thermal 974 | 242 535 197 Explosive . | . . . Electromagnetic 12 | . . 12 Impact . | . . . Slashing . | . . . Piercing . | . . . Highest Corruption 4 | . 4 4 Average Corruption 3 | . 3 4 Corruption Purged . | . . . Corruption Blocked . | . . . Effects 41 | . 15 26 Message Errors 12 | . 7 5 Matter Fused 7 | . . 7 Heat Flow Errors 3 | . 1 2 Energy Discharges 5 | . 1 4 Data Loss (minor) 7 | . 2 5 Data Loss (major) 1 | . 1 . Misfires 4 | . 2 2 Alerts 1 | . . 1 Weapon Failures 1 | . 1 . Overload Shots . | . . . Overflow Damage . | . . . Projectiles . | . . . Explosions . | . . . Melee . | . . . Knockbacks 15 | . 6 9 Impact . | . . . Kinetic 12 | . 3 9 Secondary 3 | . 3 . Self-Inflicted Damage . | . . . Shots . | . . . Rammed 4 | . 2 2 Targets Rammed 5 | . 3 2 Kicked . | . . . Crushed 1 | . 1 . Highest Temperature 259 | 40 187 259 Average Temperature 42 | 18 36 69 Received Heat Transfer 456 | . 228 228 Effects 1 | . . 1 Interference 1 | . . 1 Siege Activations . | . . . Martial Activations . | . . . Shielding Activations . | . . . Robots Disrupted . | . . . Combat Hostiles . | . . . Robots Corrupted . | . . . Combat Hostiles . | . . . Parts Fried . | . . . Impact Corruptions . | . . . Robots Melted . | . . . Combat Hostiles . | . . . Parts Melted 2 | . 2 . Heat Transferred 2225 | 550 1225 450 Parts Sabotaged . | . . . Parts Stolen . | . . . Parts Stripped . | . . . Power Chain Reactions . | . . . Alert | -11 -10 -10 ------- Run | Yrd Mat Min Maximum Alert Level 1 | . 1 . Low Security (%) 95 | 100 88 100 Level 1 4 | . 11 . Level 2 . | . . . Level 3 . | . . . Level 4 . | . . . Level 5 . | . . . High Security . | . . . Max Security . | . . . Peak Influence 254 | 5 254 95 Initial 95 | . . 95 Average 45 | 1 87 16 Influence Increases 837 | 55 632 150 Destroy 0b10 Robot/C 520 | . 440 80 Destroy 0b10 Robot/NC 85 | 55 15 15 Destroy Leader 84 | . 74 10 Successful Hack 11 | . 11 . Select Force Hacks 60 | . 60 . Destroy Structure 2 | . 2 . Lose Combat Pursuer 75 | . 30 45 Influence Decreases 837 | 55 386 396 Entered New Map 151 | . . 151 Time Decay 646 | 55 356 235 Lost Part 40 | . 30 10 Squads Dispatched 4 | . 4 . Investigation 3 | . 3 . Extermination . | . . . Reinforcement 1 | . 1 . Assault . | . . . Garrison . | . . . Intercept . | . . . Searches Triggered . | . . . Construction Impeded . | . . . Haulers Reinforced . | . . . Active Scanning Responses . | . . . Cargo Convoy Interrupts . | . . . Stealth | -11 -10 -10 --------- Run | Yrd Mat Min Distress Signals 2 | . 2 . Communications Jammed . | . . . Distress Signals . | . . . Times Spotted 42 | . 33 9 Peak Tracking Total 4 | . 4 2 Tactical Retreats 4 | . 1 3 Traps | -11 -10 -10 ------- Run | Yrd Mat Min Traps Triggered 3 | . 3 . Indirectly . | . . . Trap Hack Attempts . | . . . Triggered . | . . . Disarmed . | . . . Reprogrammed . | . . . Reused . | . . . Traps Extracted . | . . . Installed . | . . . Triggered . | . . . Machines | -11 -10 -10 ---------- Run | Yrd Mat Min Machines Disabled . | . . . Max in Single Turn . | . . . Machines Repaired . | . . . Machines Dismantled . | . . . Machines Sabotaged . | . . . Overloaded Fab Kills . | . . . Hacking | -11 -10 -10 --------- Run | Yrd Mat Min Machines Accessed 9 | . 9 . Terminals 7 | . 7 . Fabricators . | . . . Repair Stations . | . . . Recycling Units 2 | . 2 . Scanalyzers . | . . . Garrison Access . | . . . Total Hacks 27 | . 27 . Successful 6 | . 6 . Failed 21 | . 21 . Catastrophic 3 | . 3 . Database Lockouts . | . . . Manual 24 | . 24 . Terminals 20 | . 20 . Fabricators . | . . . Repair Stations . | . . . Recycling Units 7 | . 7 . Scanalyzers . | . . . Garrison Access . | . . . Terminal Hacks 2 | . 2 . Part Schematic 1 | . 1 . Robot Analysis 1 | . 1 . Fabricator Hacks . | . . . Repair Station Hacks . | . . . Recycling Unit Hacks . | . . . Scanalyzer . | . . . Garrison Access Hacks . | . . . Unauthorized Hacks 4 | . 4 . Terminals 2 | . 2 . Botnet 1 | . 1 . Operators 1 | . 1 . Fabricators . | . . . Repair Stations . | . . . Recycling Units 2 | . 2 . Tunnel 2 | . 2 . Scanalyzers . | . . . Garrison Access . | . . . Data Cores Recovered . | . . . Used . | . . . Hacking Detections 9 | . 9 . Full Trace Events . | . . . Feedback Events . | . . . Feedback Blocked . | . . . Robot Schematics Acquired . | . . . Robots Built . | . . . Authchips . | . . . Time . | . . . Total Robot Build Rating . | . . . Part Schematics Acquired 1 | . 1 . Parts Built . | . . . Authchips . | . . . Time . | . . . Total Part Build Rating . | . . . Parts Repaired . | . . . Time . | . . . Parts Recycled . | . . . Recycled Matter . | . . . Retrieved Matter . | . . . Retrieved Components . | . . . Parts Scanalyzed . | . . . Part Schematics Acquired . | . . . Parts Damaged . | . . . Bothacking | -11 -10 -10 ------------ Run | Yrd Mat Min Used RIF Installer . | . . . Robots Hacked 1 | . . 1 Non-combat . | . . . Combat 1 | . . 1 Robot Hacks Applied 1 | . . 1 parse_system 1 | . . 1 Relay Couplers Released . | . . . Fabnet Peak Effective % . | . . . Robots Rewired . | . . . Allies Hacked . | . . . Hacks Repelled . | . . . Allies | -11 -10 -10 -------- Run | Yrd Mat Min Total Allies . | . . . Largest Group . | . . . Highest-Rated Group . | . . . Highest-Rated Ally . | . . . Total Orders . | . . . Ally Attacks . | . . . Total Damage . | . . . Kills . | . . . Allies Corrupted . | . . . Allies Melted . | . . . Intel | -11 -10 -10 ------- Run | Yrd Mat Min Active Infowar (turns) 2689 | 289 1245 1155 Seismic 2689 | 289 1245 1155 Robot Analysis Total 1 | . 1 . Derelict Logs Recovered 2 | . . 2 Drone Launches . | . . . Drone Recoveries . | . . . Exploration | -11 -10 -10 ------------- Run | Yrd Mat Min Turns Passed 2835 | 419 1245 1171 Spaces Moved 1297 | 205 583 509 Core 6 | 6 . . Treads 1134 | 199 583 352 Legs . | . . . Wheels 157 | . . 157 Hover . | . . . Flight . | . . . Fastest Speed 50 | 50 160 160 Average Speed 174 | 156 160 199 Slowest Speed 480 | 160 160 480 Overloaded Moves . | . . . Propulsion Burnouts . | . . . Robots Hopped . | . . . Potential Cave-ins . | . . . Cave-ins Triggered . | . . . Exploration Rate (%) 61 | 9 95 81 Regions Visited 2 Branch Regions 1 Pre-discovered Areas 2 | . 2 . Known Exits Taken . | . . . Unknown Exits Taken 2 | 1 1 . Scrap Searched 3 | . . 3 Spaces Dug 2 | . 2 . Terrain Destroyed 2 | . 2 . Melee . | . . . Projectile 2 | . 2 . AOE . | . . . Terrain Rammed . | . . . Walls Destroyed . | . . . Machines Disabled . | . . . Actions | -11 -10 -10 --------- Run | Yrd Mat Min Total 1601 | 253 749 599 Wait 119 | 11 73 35 Move 1295 | 204 582 509 Hop . | . . . Pick Up 12 | 5 3 4 Fast Attach 8 | 6 . 2 Attach 5 | 1 3 1 Detach . | . . . Swap 8 | . 5 3 Drop 3 | . 2 1 Fire 145 | 26 78 41 Melee 1 | . . 1 Ram . | . . . Kick . | . . . Crush 5 | . 3 2 Escape Stasis . | . . . Rewire . | . . . Trap . | . . . Miscellaneous . | . . . Route ------- -11/Scrapyard -10/Materials (discovered 5 exits: *Mat x3 / [*Min x2]) -10/Mines (discovered 2 exits: *Mat x2) History --------- Turn | Location | Event 32 | -11/Scrapyard | Discovered new exit (range 15) 420 | -11/Scrapyard | Entered Materials 421 | -10/Materials | Build established: Mutant 633 | -10/Materials | Discovered new exit (range 7) 658 | -10/Materials | Discovered new exit (range 16) 781 | -10/Materials | Discovered new exit (range 9) 1117 | -10/Materials | Discovered new exit (range 10) 1212 | -10/Materials | Discovered new exit (range 14) 1618 | -10/Materials | Core integrity fell below 50% 1633 | -10/Materials | Lost 3 parts (1p1n1w) 1665 | -10/Materials | Entered Mines 1801 | -10/Mines | YI-UF0 nonchalantly dropped a Grenade Launcher on the ground 1850 | -10/Mines | Discovered new exit (range 13) 1949 | -10/Mines | Found a damaged Exp. Sensor Array with a note attached 1954 | -10/Mines | Found Prototype Device 2567 | -10/Mines | Core integrity fell below 20% 2667 | -10/Mines | Identified exit to Materials 2836 | -10/Mines | Destroyed by G-47 Trooper with Particle Gun Last Messages --------------- 02615_ G-34 Mercenary destroyed. 02628_ System corrupted: Component data lost. 02652_ Searching scrap... 02652_ Found EM Pulse Gun. 02652_ Found 61 Matter. 02652_ Found Lgt. Assault Rifle. 02652_ Found 30 Matter. 02653_ Acquired 8 matter. 02657_ Acquired Lgt. Assault Rifle. 02660_ Acquired EM Pulse Gun. 02667_ Acquired derelict log, extracted data. Loading 1 Mines exit... 02692_ System corrupted: FCS attempts to trigger Lgt. Cannon. 02692_ System corrupted: Lgt. Cannon misfires. 02743_ System corrupted: Heat flow error (+220). 02767_ Acquired 2 matter. 02817_ G-47 Trooper knocked back. 02832_ Lgt. Cannon destroyed. Map ----- +----------------------------------------------------+ | ?# #??????# """ ##??# ######### #??????? | | ?# #??????# """ #??# #??????## #??????? | | ## #???????# """ ???# #?###### ##??????? | | ## #????????# ????# ### ##???????? | | #?????????# #????# #????????? | | #????????## ###### ## #????????? | | ####????????# ### ##????????? | | ????????????# ###### #?## #####?????????? | | ????????????## ##????# #??## ##?????????????? | | ?????????????## #?????# #???## ##??????????????? | | ##????????????# %#?????# #????# ##???????????????? | | ##???????????# %#?????# ###### #????????????????? | | #####???##### ####### !%%=%*#????????????????? | | ##??# ## ####%#####?????????